lending/lending_fUSD_20250516
["ID","MTS","AMOUNT","RATE_DAILY","PERIOD"]
[361293033,1747427454991,-529.58,0.00016712,2]
[361293034,1747427455001,-400.0,0.00016712,2]
[361293035,1747427455010,-400.0,0.00016712,2]
[361293036,1747427455020,-151.0,0.00016712,2]
[361293037,1747427455030,-151.0,0.00016712,2]
[361293038,1747427455043,-1908.45,0.00016712,2]
[361293039,1747427455052,-151.0,0.00016712,2]
[361293040,1747427455062,-400.0,0.00016712,2]
[361293041,1747427455071,-151.0,0.00016712,2]
[361293042,1747427455081,-400.0,0.00016712,2]
[361293043,1747427455091,-521.02,0.00016712,2]
[361293044,1747427455101,-754.79,0.00016712,2]
[361293045,1747427455110,-400.0,0.00016712,2]
[361293046,1747427455120,-418.78,0.00016712,2]
[361293047,1747427455130,-479.78,0.00016712,2]
[361293048,1747427455140,-602.09,0.00016712,2]
[361293049,1747427455149,-598.3,0.00016712,2]
[361293050,1747427455159,-400.0,0.00016712,2]
[361293051,1747427455170,-400.0,0.00016712,2]
[361293052,1747427455180,-762.94,0.00016712,2]
[361293053,1747427455189,-400.0,0.00016712,2]
[361293054,1747427455199,-500.0,0.00016712,2]
[361293055,1747427455208,-560.0,0.00016712,2]
[361293056,1747427455218,-400.0,0.00016712,2]
[361293057,1747427455227,-448.62,0.00016712,2]
[361293058,1747427455237,-400.0,0.00016712,2]
[361293059,1747427455246,-916.86,0.00016712,2]
[361293060,1747427455256,-151.0,0.00016712,2]
[361293061,1747427455265,-151.0,0.00016712,2]
[361293062,1747427455274,-400.0,0.00016712,2]
[361293063,1747427455284,-151.0,0.00016712,2]
[361293064,1747427455293,-151.0,0.00016712,2]
[361293065,1747427455303,-400.0,0.00016712,2]
[361293066,1747427455313,-564.8,0.00016712,2]
[361293067,1747427455323,-1338.15,0.00016712,2]
[361293068,1747427455332,-426.71,0.00016712,2]
[361293069,1747427455341,-576.28,0.00016712,2]
[361293070,1747427455350,-151.0,0.00016712,2]
[361293071,1747427455360,-736.31,0.00016712,2]
[361293072,1747427455370,-400.0,0.00016712,2]
[361293073,1747427455380,-400.0,0.00016712,2]
[361293074,1747427455389,-400.0,0.00016712,2]
[361293075,1747427455399,-226.65807218,0.00016712,2]
[361293076,1747427455408,-2308.11,0.00016712,2]
[361293077,1747427455417,-442.34,0.00016712,2]
[361293078,1747427455426,-400.0,0.00016712,2]
[361293079,1747427455436,-469.83734832,0.00016712,2]
[361293080,1747427455445,-555.95,0.00016712,2]
[361293081,1747427455455,-427.96,0.00016712,2]
[361293082,1747427455464,-667.55,0.00016712,2]
[361293083,1747427455473,-400.0,0.00016712,2]
[361293084,1747427455483,-400.0,0.00016712,2]
[361293085,1747427455492,-400.0,0.00016712,2]
[361293086,1747427455503,-151.0,0.00016712,2]
[361293087,1747427455512,-400.0,0.00016712,2]
[361293088,1747427455523,-816.87,0.00016712,2]
[361293089,1747427455532,-1186.32,0.00016712,2]
[361293090,1747427455542,-400.0,0.00016712,2]
[361293091,1747427455552,-755.58,0.00016712,2]
[361293092,1747427455562,-400.0,0.00016712,2]
[361293093,1747427455572,-424.6,0.00016712,2]
[361293094,1747427455581,-400.0,0.00016712,2]
[361293095,1747427455590,-400.0,0.00016712,2]
[361293096,1747427455600,-444.63,0.00016712,2]
[361293097,1747427455610,-400.0,0.00016712,2]
[361293098,1747427455619,-400.0,0.00016712,2]
[361293099,1747427455630,-400.0,0.00016712,2]
[361293100,1747427455644,-1326.46,0.00016712,2]
[361293101,1747427455655,-400.0,0.00016712,2]
[361293102,1747427455665,-400.0,0.00016712,2]
[361293103,1747427455674,-682.29,0.00016712,2]
[361293104,1747427455687,-400.0,0.00016712,2]
[361293105,1747427455697,-400.0,0.00016712,2]
[361293106,1747427455709,-400.0,0.00016712,2]
[361293107,1747427455719,-1170.58,0.00016712,2]
[361293108,1747427455730,-400.0,0.00016712,2]
[361293109,1747427455738,-860.94,0.00016712,2]
[361293110,1747427455749,-1301.72,0.00016712,2]
[361293111,1747427455758,-400.0,0.00016712,2]
[361293112,1747427455767,-400.0,0.00016712,2]
[361293113,1747427455776,-734.54,0.00016712,2]
[361293114,1747427455786,-448.64,0.00016712,2]
[361293115,1747427455795,-1553.96,0.00016712,2]
[361293116,1747427455804,-738.54,0.00016712,2]
[361293117,1747427455814,-1528.52,0.00016712,2]
[361293118,1747427455823,-400.0,0.00016712,2]
[361293119,1747427455832,-400.0,0.00016712,2]
[361293120,1747427455842,-487.96,0.00016712,2]
[361293121,1747427455851,-400.0,0.00016712,2]
[361293122,1747427455861,-373.032667,0.00016712,2]
[361293123,1747427455871,-373.032667,0.00016712,2]
[361293124,1747427455880,-400.0,0.00016712,2]
[361293125,1747427455890,-931.93,0.00016712,2]
[361293126,1747427455899,-3832.1,0.00016712,2]
[361293127,1747427455909,-421.44,0.00016712,2]
[361293128,1747427455919,-151.0,0.00016712,2]
[361293129,1747427455928,-151.0,0.00016712,2]
[361293130,1747427455938,-373.032667,0.00016712,2]
[361293131,1747427455947,-1503.2,0.00016712,2]
[361293132,1747427455956,-476.03,0.00016712,2]
[361293133,1747427455966,-151.0,0.00016712,2]
[361293134,1747427455975,-373.032667,0.00016712,2]
[361293135,1747427455985,-586.56,0.00016712,2]
[361293136,1747427455995,-313.37965245,0.00016712,2]
[361293137,1747427456005,-1213.13,0.00016712,2]
[361293138,1747427456014,-151.0,0.00016712,2]
[361293139,1747427456024,-151.0,0.00016712,2]
[361293140,1747427456034,-492.97,0.00016712,2]
[361293141,1747427456043,-151.0,0.00016712,2]
[361293142,1747427456053,-400.0,0.00016712,2]
[361293143,1747427456062,-535.48,0.00016712,2]
[361293144,1747427456072,-154572.74,0.00016712,2]
[361293145,1747427456081,-400.0,0.00016712,2]
[361293146,1747427456091,-537.81,0.00016712,2]
[361293147,1747427456189,-400.0,0.00016712,2]
[361293148,1747427456199,-848.51,0.00016712,2]
[361293149,1747427456208,-3227.83,0.00016712,2]
[361293150,1747427456217,-400.0,0.00016712,2]
[361293151,1747427456227,-646.0,0.00016712,2]
[361293152,1747427456236,-1091.18,0.00016712,2]
[361293153,1747427456246,-5241.01,0.00016712,2]
[361293154,1747427456255,-967.29,0.00016712,2]
[361293155,1747427456264,-646.53,0.00016712,2]
[361293156,1747427456273,-400.0,0.00016712,2]
[361293157,1747427456283,-498.18,0.00016712,2]
[361293158,1747427456292,-400.0,0.00016712,2]
[361293159,1747427456303,-1466.02,0.00016712,2]
[361293160,1747427456312,-400.0,0.00016712,2]
[361293161,1747427456321,-816.21,0.00016712,2]
[361293162,1747427456330,-1389.8,0.00016712,2]
[361293163,1747427456339,-261.12255114,0.00016712,2]
[361293164,1747427456348,-2000.0,0.00016712,2]
[361293165,1747427456357,-400.0,0.00016712,2]
[361293166,1747427456366,-400.0,0.00016712,2]
[361293167,1747427456375,-400.0,0.00016712,2]
[361293168,1747427456386,-150.0,0.00016712,2]
[361293169,1747427456395,-608.74,0.00016712,2]
[361293170,1747427456405,-702.34,0.00016712,2]
[361293171,1747427456414,-441.39,0.00016712,2]
[361293172,1747427456423,-400.0,0.00016712,2]
[361293173,1747427456432,-1547.358404,0.00016712,2]
[361293174,1747427456441,-1547.358404,0.00016712,2]
[361293175,1747427456450,-1547.358404,0.00016712,2]
[361293176,1747427456459,-3159.88,0.00016712,2]
[361293177,1747427456468,-500.0,0.00016712,2]
[361293178,1747427456478,-1711.22,0.00016712,2]
[361293179,1747427456489,-400.0,0.00016712,2]
[361293180,1747427456499,-456.3,0.00016712,2]
[361293181,1747427456508,-689.98,0.00016712,2]
[361293182,1747427456517,-1547.358404,0.00016712,2]
[361293183,1747427456526,-1547.358404,0.00016712,2]
[361293184,1747427456535,-1547.358404,0.00016712,2]
[361293185,1747427456545,-550.23,0.00016712,2]
[361293186,1747427456555,-400.0,0.00016712,2]
[361293187,1747427456564,-909.77,0.00016712,2]
[361293188,1747427456574,-400.0,0.00016712,2]
[361293189,1747427456582,-682.31,0.00016712,2]
[361293190,1747427456591,-151.0,0.00016712,2]
[361293191,1747427456600,-400.0,0.00016712,2]
[361293192,1747427456610,-151.0,0.00016712,2]
[361293193,1747427456619,-151.0,0.00016712,2]
[361293194,1747427456628,-11646.27,0.00016712,2]
[361293195,1747427456639,-493.46,0.00016712,2]
[361293196,1747427456647,-1419.79,0.00016712,2]
[361293197,1747427456656,-400.0,0.00016712,2]
[361293198,1747427456666,-400.0,0.00016712,2]
[361293199,1747427456674,-3107.61,0.00016712,2]
[361293200,1747427456685,-481.98,0.00016712,2]
[361293201,1747427456694,-556.46,0.00016712,2]
[361293202,1747427456703,-400.0,0.00016712,2]
[361293203,1747427456712,-400.0,0.00016712,2]
[361293204,1747427456721,-400.0,0.00016712,2]
[361293205,1747427456730,-736.55,0.00016712,2]
[361293206,1747427456739,-400.0,0.00016712,2]
[361293207,1747427456748,-791.95,0.00016712,2]
[361293208,1747427456757,-400.0,0.00016712,2]
[361293209,1747427456766,-400.0,0.00016712,2]
[361293210,1747427456775,-1220.55,0.00016712,2]
[361293211,1747427456785,-400.0,0.00016712,2]
[361293212,1747427456793,-400.0,0.00016712,2]
[361293213,1747427456803,-448.77132568,0.00016712,2]
[361293214,1747427456813,-888.02,0.00016712,2]
[361293215,1747427456822,-1226.09,0.00016712,2]
[361293216,1747427456831,-400.0,0.00016712,2]
[361293217,1747427456840,-2127.43,0.00016712,2]
[361293218,1747427456850,-400.0,0.00016712,2]
[361293219,1747427456859,-655.8,0.00016712,2]
[361293220,1747427456869,-701.53,0.00016712,2]
[361293221,1747427456878,-1462.49,0.00016712,2]
[361293222,1747427456888,-776.74,0.00016712,2]
[361293223,1747427456897,-400.0,0.00016712,2]
[361293224,1747427456906,-2260.44,0.00016712,2]
[361293225,1747427456915,-918.35,0.00016712,2]
[361293226,1747427456924,-1727.98,0.00016712,2]
[361293227,1747427456933,-659.06,0.00016712,2]
[361293228,1747427456942,-2079.45,0.00016712,2]
[361293229,1747427456951,-469.17,0.00016712,2]
[361293230,1747427456960,-400.0,0.00016712,2]
[361293231,1747427456970,-400.0,0.00016712,2]
[361293232,1747427456979,-847.36,0.00016712,2]
[361293233,1747427456988,-3556.01,0.00016712,2]
[361293234,1747427456997,-412.67,0.00016712,2]
[361293235,1747427457008,-494.09,0.00016712,2]
[361293236,1747427457017,-1100.56,0.00016712,2]
[361293237,1747427457026,-951.5,0.00016712,2]
[361293238,1747427457035,-400.0,0.00016712,2]
[361293239,1747427457045,-1165.59,0.00016712,2]
[361293240,1747427457054,-3732.01,0.00016712,2]
[361293241,1747427457063,-931.99,0.00016712,2]
[361293242,1747427457072,-544.26,0.00016712,2]
[361293243,1747427457081,-401.01,0.00016712,2]
[361293244,1747427457090,-500.0,0.00016712,2]
[361293245,1747427457099,-1043.07825157,0.00016712,2]
[361293246,1747427457167,-1499.1,0.00016438,2]
[361293247,1747427457177,-1073.89174843,0.00016712,2]
[361293248,1747427457186,-639.19175732,0.00016712,2]
[361293249,1747427457199,-2554.83824268,0.00016712,2]
[361293250,1747427457208,-400.0,0.00016712,2]
[361293251,1747427457217,-3064.33,0.00016712,2]
[361293252,1747427457226,-340.58492416,0.00016712,2]
[361293253,1747427458176,-301.21387722,0.00014,2]
[361293254,1747427458185,-527.38,0.00016438,2]
[361293255,1747427458195,-59.41507584,0.00016712,2]
[361293256,1747427458204,-400.0,0.00016712,2]
[361293257,1747427458213,-932.31,0.00016712,2]
[361293258,1747427458222,-104.68104744,0.00016712,2]
[361293259,1747427458234,-470.0,0.00016712,2]
[361293260,1747427458250,-321.31895256,0.00016712,2]
[361293261,1747427458259,-1379.76,0.00016712,2]
[361293262,1747427458269,-607.46,0.00016712,2]
[361293263,1747427458278,-514.32,0.00016712,2]
[361293264,1747427458287,-558.29,0.00016712,2]
[361293265,1747427458296,-2149.72,0.00016712,2]
[361293266,1747427458306,-1555.05,0.00016712,2]
[361293267,1747427458315,-400.0,0.00016712,2]
[361293268,1747427458324,-1573.0,0.00016712,2]
[361293269,1747427458333,-2218.41,0.00016712,2]
[361293270,1747427458342,-400.0,0.00016712,2]
[361293271,1747427458352,-940.76,0.00016712,2]
[361293272,1747427458361,-2669.08,0.00016712,2]
[361293273,1747427458371,-581.48,0.00016712,2]
[361293274,1747427458381,-400.0,0.00016712,2]
[361293275,1747427458390,-400.0,0.00016712,2]
[361293276,1747427458400,-1965.28,0.00016712,2]
[361293277,1747427458410,-1099.39,0.00016712,2]
[361293278,1747427458419,-400.0,0.00016712,2]
[361293279,1747427458428,-400.0,0.00016712,2]
[361293280,1747427458438,-151.0,0.00016712,2]
[361293281,1747427458447,-400.0,0.00016712,2]
[361293282,1747427458456,-858.67,0.00016712,2]
[361293283,1747427458465,-151.0,0.00016712,2]
[361293284,1747427458475,-151.0,0.00016712,2]
[361293285,1747427458484,-2675.57,0.00016712,2]
[361293286,1747427458493,-3306.67,0.00016712,2]
[361293287,1747427458503,-570.99,0.00016712,2]
[361293288,1747427458512,-400.0,0.00016712,2]
[361293289,1747427458521,-2141.93265789,0.00016712,2]
[361293290,1747427458533,-8661.96734211,0.00016712,2]
[361293291,1747427458542,-439.35,0.00016712,2]
[361293292,1747427458552,-434.89,0.00016712,2]
[361293293,1747427458562,-6526.76,0.00016712,2]
[361293294,1747427458571,-432.91,0.00016712,2]
[361293295,1747427458581,-537.23675846,0.00016712,2]
[361293296,1747427458591,-400.0,0.00016712,2]
[361293297,1747427458600,-150.0,0.00016712,2]
[361293298,1747427458610,-2955.67,0.00016712,2]
[361293299,1747427458622,-1074.15,0.00016712,2]
[361293300,1747427458632,-400.0,0.00016712,2]
[361293301,1747427458648,-1449.33,0.00016712,2]
[361293302,1747427458658,-637.72,0.00016712,2]
[361293303,1747427458667,-400.0,0.00016712,2]
[361293304,1747427458676,-799.16,0.00016712,2]
[361293305,1747427458687,-2564.36,0.00016712,2]
[361293306,1747427458697,-965.77,0.00016712,2]
[361293307,1747427458707,-400.0,0.00016712,2]
[361293308,1747427458719,-400.0,0.00016712,2]
[361293309,1747427458729,-6599.36,0.00016712,2]
[361293310,1747427458739,-400.0,0.00016712,2]
[361293311,1747427458748,-728.97,0.00016712,2]
[361293312,1747427458757,-400.0,0.00016712,2]
[361293313,1747427458766,-949.18,0.00016712,2]
[361293314,1747427458775,-4940.87,0.00016712,2]
[361293315,1747427458785,-1083.43,0.00016712,2]
[361293316,1747427458794,-500.0,0.00016712,2]
[361293317,1747427458804,-400.0,0.00016712,2]
[361293318,1747427458813,-988.05,0.00016712,2]
[361293319,1747427458822,-189.81679441,0.00016712,2]
[361293320,1747427458832,-825.45,0.00016712,2]
[361293321,1747427458841,-16049.3,0.00016712,2]
[361293322,1747427458851,-1171.75,0.00016712,2]
[361293323,1747427458860,-1108.63,0.00016712,2]
[361293324,1747427458871,-400.0,0.00016712,2]
[361293325,1747427458881,-400.0,0.00016712,2]
[361293326,1747427458890,-400.0,0.00016712,2]
[361293327,1747427458900,-3556.69,0.00016712,2]
[361293328,1747427458910,-400.0,0.00016712,2]
[361293329,1747427458919,-750.15,0.00016712,2]
[361293330,1747427458928,-3259.67,0.00016712,2]
[361293331,1747427458938,-1336.06,0.00016712,2]
[361293332,1747427458947,-400.0,0.00016712,2]
[361293333,1747427458957,-495.26119239,0.00016712,2]
[361293334,1747427458966,-595.73,0.00016712,2]
[361293335,1747427458975,-1147.25,0.00016712,2]
[361293336,1747427458985,-400.0,0.00016712,2]
[361293337,1747427458994,-1122.71,0.00016712,2]
[361293338,1747427459004,-2717.91,0.00016712,2]
[361293339,1747427459013,-8204.31,0.00016712,2]
[361293340,1747427459022,-670.3,0.00016712,2]
[361293341,1747427459033,-797.03,0.00016712,2]
[361293342,1747427459043,-402.97,0.00016712,2]
[361293343,1747427459054,-805.51,0.00016712,2]
[361293344,1747427459064,-799.94,0.00016712,2]
[361293345,1747427459073,-3011.25,0.00016712,2]
[361293346,1747427459083,-400.0,0.00016712,2]
[361293347,1747427459092,-400.0,0.00016712,2]
[361293348,1747427459102,-759.85,0.00016712,2]
[361293349,1747427459111,-2306.15,0.00016712,2]
[361293350,1747427459121,-946.56,0.00016712,2]
[361293351,1747427459131,-366.052597,0.00016712,2]
[361293352,1747427459140,-366.052597,0.00016712,2]
[361293353,1747427459149,-441.21,0.00016712,2]
[361293354,1747427459158,-366.052597,0.00016712,2]
[361293355,1747427459168,-400.0,0.00016712,2]
[361293356,1747427459177,-897.09,0.00016712,2]
[361293357,1747427459186,-504.13,0.00016712,2]
[361293358,1747427459196,-500.0,0.00016712,2]
[361293359,1747427459206,-400.0,0.00016712,2]
[361293360,1747427459215,-366.052597,0.00016712,2]
[361293361,1747427459225,-366.052597,0.00016712,2]
[361293362,1747427459234,-4983.33,0.00016712,2]
[361293363,1747427459243,-366.052597,0.00016712,2]
[361293364,1747427459253,-274.42143183,0.00016712,2]
[361293365,1747427459262,-400.0,0.00016712,2]
[361293366,1747427459271,-1980.23,0.00016712,2]
[361293367,1747427459280,-850.83,0.00016712,2]
[361293368,1747427459289,-151.0,0.00016712,2]
[361293369,1747427459299,-400.0,0.00016712,2]
[361293370,1747427459308,-1143.72,0.00016712,2]
[361293371,1747427459317,-151.0,0.00016712,2]
[361293372,1747427459327,-151.0,0.00016712,2]
[361293373,1747427459336,-1113.02,0.00016712,2]
[361293374,1747427459345,-7262.11,0.00016712,2]
[361293375,1747427459355,-657.18,0.00016712,2]
[361293376,1747427459364,-2753.53,0.00016712,2]
[361293377,1747427459374,-400.0,0.00016712,2]
[361293378,1747427459383,-571.97,0.00016712,2]
[361293379,1747427459392,-500.0,0.00016712,2]
[361293380,1747427459402,-626.0,0.00016712,2]
[361293381,1747427459412,-459.02,0.00016712,2]
[361293382,1747427459421,-595.42,0.00016712,2]
[361293383,1747427459430,-151.0,0.00016712,2]
[361293384,1747427459440,-500.0,0.00016712,2]
[361293385,1747427459449,-400.0,0.00016712,2]
[361293386,1747427459458,-151.0,0.00016712,2]
[361293387,1747427459468,-400.0,0.00016712,2]
[361293388,1747427459478,-151.0,0.00016712,2]
[361293389,1747427459487,-14412.19,0.00016712,2]
[361293390,1747427459496,-500.0,0.00016712,2]
[361293391,1747427459506,-6827.64,0.00016712,2]
[361293392,1747427459600,-432.31,0.00016712,2]
[361293393,1747427459648,-400.0,0.00016712,2]
[361293394,1747427459658,-293.100472,0.00016712,2]
[361293395,1747427459668,-534.27,0.00016712,2]
[361293396,1747427459679,-945.65,0.00016712,2]
[361293397,1747427459688,-799.27,0.00016712,2]
[361293398,1747427459698,-683.31,0.00016712,2]
[361293399,1747427459707,-1053.76,0.00016712,2]
[361293400,1747427459717,-49977.77503417,0.00016712,2]
[361293401,1747427459732,-12657.86084069,0.00016712,2]
[361293402,1747427459753,-739.96549882,0.00016712,2]
[361293403,1747427459764,-79790.42862632,0.00016712,2]
[361293404,1747427459774,-249.90776,0.00016712,2]
[361293405,1747427459784,-425.54,0.00016712,2]
[361293406,1747427459793,-2860.44,0.00016712,2]
[361293407,1747427459802,-1565.66,0.00016712,2]
[361293408,1747427459812,-400.0,0.00016712,2]
[361293409,1747427459822,-1809.26,0.00016712,2]
[361293410,1747427459831,-400.0,0.00016712,2]
[361293411,1747427459841,-13125.4,0.00016712,2]
[361293412,1747427459850,-1012.33,0.00016712,2]
[361293413,1747427459859,-935.85,0.00016712,2]
[361293414,1747427459869,-400.0,0.00016712,2]
[361293415,1747427459878,-714.72,0.00016712,2]
[361293416,1747427459887,-839.63,0.00016712,2]
[361293417,1747427459897,-1165.35,0.00016712,2]
[361293418,1747427459907,-2226.51,0.00016712,2]
[361293419,1747427459917,-533.85,0.00016712,2]
[361293420,1747427459926,-670.69,0.00016712,2]
[361293421,1747427459936,-465.84,0.00016712,2]
[361293422,1747427459945,-1159.37,0.00016712,2]
[361293423,1747427459955,-11371.42,0.00016712,2]
[361293424,1747427459966,-510.33,0.00016712,2]
[361293425,1747427459975,-2441.47,0.00016712,2]
[361293426,1747427459985,-400.0,0.00016712,2]
[361293427,1747427459995,-400.0,0.00016712,2]
[361293428,1747427460004,-1245.34,0.00016712,2]
[361293429,1747427460013,-10119.83,0.00016712,2]
[361293430,1747427460023,-18653.07,0.00016712,2]
[361293431,1747427460032,-2091.86,0.00016712,2]
[361293432,1747427460042,-400.0,0.00016712,2]
[361293433,1747427460052,-861.13,0.00016712,2]
[361293434,1747427460062,-1508.53,0.00016712,2]
[361293435,1747427460072,-400.0,0.00016712,2]
[361293436,1747427460083,-8564.41,0.00016712,2]
[361293437,1747427460092,-400.0,0.00016712,2]
[361293438,1747427460102,-479.85,0.00016712,2]
[361293439,1747427460112,-440.87,0.00016712,2]
[361293440,1747427460122,-400.0,0.00016712,2]
[361293441,1747427460131,-1494.04,0.00016712,2]
[361293442,1747427460140,-400.0,0.00016712,2]
[361293443,1747427460150,-400.0,0.00016712,2]
[361293444,1747427460159,-1342.66,0.00016712,2]
[361293445,1747427460169,-1403.0,0.00016712,2]
[361293446,1747427460178,-943.74,0.00016712,2]
[361293447,1747427460188,-400.0,0.00016712,2]
[361293448,1747427460198,-999.35,0.00016712,2]
[361293449,1747427460207,-1256.01,0.00016712,2]
[361293450,1747427460216,-400.0,0.00016712,2]
[361293451,1747427460226,-3017.46,0.00016712,2]
[361293452,1747427460235,-1791.16,0.00016712,2]
[361293453,1747427460244,-10414.62,0.00016712,2]
[361293454,1747427460254,-563.35,0.00016712,2]
[361293455,1747427460263,-400.0,0.00016712,2]
[361293456,1747427460272,-400.0,0.00016712,2]
[361293457,1747427460282,-400.0,0.00016712,2]
[361293458,1747427460291,-450.0,0.00016712,2]
[361293459,1747427460301,-400.0,0.00016712,2]
[361293460,1747427460310,-1033.64,0.00016712,2]
[361293461,1747427460319,-500.0,0.00016712,2]
[361293462,1747427460329,-735.61,0.00016712,2]
[361293463,1747427460338,-1122.71,0.00016712,2]
[361293464,1747427460348,-400.0,0.00016712,2]
[361293465,1747427460357,-400.0,0.00016712,2]
[361293466,1747427460367,-282.224255,0.00016712,2]
[361293467,1747427460376,-439.59,0.00016712,2]
[361293468,1747427460386,-1541.13,0.00016712,2]
[361293469,1747427460396,-400.0,0.00016712,2]
[361293470,1747427460406,-282.224255,0.00016712,2]
[361293471,1747427460415,-400.0,0.00016712,2]
[361293472,1747427460425,-5611.59,0.00016712,2]
[361293473,1747427460434,-282.224255,0.00016712,2]
[361293474,1747427460444,-647.62,0.00016712,2]
[361293475,1747427460454,-400.0,0.00016712,2]
[361293476,1747427460464,-776.17,0.00016712,2]
[361293477,1747427460474,-23524.04,0.00016712,2]
[361293478,1747427460484,-400.0,0.00016712,2]
[361293479,1747427460494,-282.224255,0.00016712,2]
[361293480,1747427460503,-282.224255,0.00016712,2]
[361293481,1747427460513,-282.224255,0.00016712,2]
[361293482,1747427460522,-400.0,0.00016712,2]
[361293483,1747427460532,-672.55,0.00016712,2]
[361293484,1747427460541,-864.69,0.00016712,2]
[361293485,1747427460551,-21255.1,0.00016712,2]
[361293486,1747427460561,-400.0,0.00016712,2]
[361293487,1747427460572,-400.0,0.00016712,2]
[361293488,1747427460581,-406.86,0.00016712,2]
[361293489,1747427460591,-400.0,0.00016712,2]
[361293490,1747427460600,-576.87,0.00016712,2]
[361293491,1747427460610,-400.0,0.00016712,2]
[361293492,1747427460620,-1568.18,0.00016712,2]
[361293493,1747427460629,-1269.95,0.00016712,2]
[361293494,1747427460642,-2186.88,0.00016712,2]
[361293495,1747427460652,-400.0,0.00016712,2]
[361293496,1747427460661,-433.55,0.00016712,2]
[361293497,1747427460670,-1148.53,0.00016712,2]
[361293498,1747427460681,-400.0,0.00016712,2]
[361293499,1747427460691,-400.0,0.00016712,2]
[361293500,1747427460700,-1530.2,0.00016712,2]
[361293501,1747427460710,-4201.18,0.00016712,2]
[361293502,1747427460719,-400.0,0.00016712,2]
[361293503,1747427460729,-727.84,0.00016712,2]
[361293504,1747427460739,-408.0,0.00016712,2]
[361293505,1747427460749,-646.93,0.00016712,2]
[361293506,1747427460758,-400.0,0.00016712,2]
[361293507,1747427460768,-2796.84,0.00016712,2]
[361293508,1747427460778,-1499.1,0.00016712,2]
[361293509,1747427460787,-527.38,0.00016712,2]
[361293510,1747427460797,-502.6618643,0.00016712,2]
[361293511,1747427460806,-178.77,0.00016712,2]
[361293512,1747427460816,-864.05076374,0.00016742,2]
[361293513,1747427460825,-5811.18435315,0.00016758,2]
[361293514,1747427460834,-587.0,0.0001677,2]
[361293515,1747427460844,-500.0,0.00016773,2]
[361293516,1747427460854,-500.0,0.00016773,2]
[361293517,1747427460863,-3000.0,0.0001678,2]
[361293518,1747427460874,-151.0,0.00016795,2]
[361293519,1747427460883,-375.0,0.00016798,2]
[361293520,1747427460894,-378.94080938,0.00016823,2]
[361293521,1747427460904,-151.0,0.00016825,2]
[361293522,1747427460914,-151.0,0.00016825,2]
[361293523,1747427460924,-151.0,0.00016825,2]
[361293524,1747427460934,-151.0,0.00016825,2]
[361293525,1747427460944,-151.0,0.00016825,2]
[361293526,1747427460954,-2468.24244422,0.00016831,2]
[361293527,1747427460964,-1043.63790452,0.00016886,2]
[361293528,1747427460974,-750.0,0.00016898,2]
[361293529,1747427460984,-1021.3471797,0.00016901,2]
[361293530,1747427460994,-1680.0,0.00016906,2]
[361293531,1747427461004,-151.0,0.00016943,2]
[361293532,1747427461014,-5811.18435315,0.00016959,2]